[Event "45th FIDE Olympiad 2024"]
[Site "Budapest"]
[Date "2024.09.12"]
[Round "2.40"]
[White "Movahed, Sina"]
[Black "Barria Santos, Jose Guilherme"]
[Result "1-0"]
[ECO "C84"]
[WhiteElo "2528"]
[BlackElo "2411"]
[Annotator "TA"]
[PlyCount "97"]
[EventDate "2024.09.05"]
[EventType "team-tourn"]
[EventCountry "HUN"]
[SourceTitle "playchess.com"]
[Source "ChessBase"]
[SourceQuality "1"]
[WhiteTeam "Iran"]
[BlackTeam "Portugal"]
[WhiteTeamCountry "IRI"]
[BlackTeamCountry "POR"]
[TimeControl "40/5400+30:1800+30"]

{[%evp 13,97,16,18,0,8,8,19,11,30,0,20,14,15,18,18,18,20,14,26,-3,0,-2,0,0,4,2,36,0,6,-20,0,-38,-33,-69,-63,-70,-66,-93,-69,-91,-45,-56,-71,-69,-60,-65,-58,-118,-67,-82,-57,-58,-58,-85,-104,-129,-19,-27,-19,-44,-5,-47,-47,-47,-29,-39,-8,-14,9,0,48,31,32,0,22,18,20,26,27,11,48,54,49,88,574,546]} 1. e4 {[%emt 0:00:10]} e5 {[%emt 0:00:08]} 2. Nf3 {[%emt 0:00:06]} Nc6 {[%emt 0:00:02]} 3. Bb5 {[%emt 0:00:06]} a6 {[%emt 0:00:15]} 4. Ba4 {[%emt 0:00:07]} Nf6 {[%emt 0:00:03]} 5. O-O {[%emt 0:00:17]} Be7 {[%emt 0:00:18]} 6. d3 {[%emt 0:00:16]} b5 {[%emt 0:00:27]} 7. Bb3 {[%emt 0:00:02]} d6 {[%emt 0:00:07]} 8. Bd2 {[%emt 0:00:05]} O-O {[%emt 0:02:55]} 9. h3 {[%emt 0:00:12]} Bd7 {[%emt 0:07:35]} 10. Re1 {[%emt 0:07:15] The position is equal.} h6 {[%emt 0:01:07]} 11. c4 {[%emt 0:03:53]} b4 {[%emt 0:22:48]} 12. a3 {[%emt 0:07:46]} a5 {[%emt 0:03:15]} 13. Be3 {[%emt 0:02:21]} Re8 {[%emt 0:00:06]} 14. Nbd2 {[%emt 0:02:51]} Bf8 {[%emt 0:00:54]} 15. Rc1 {[%emt 0:03:55]} Be6 {[%emt 0:13:17]} 16. Kh2 {[%emt 0:14:15]} Nb8 {[%emt 0:07:02]} 17. d4 {[%emt 0:03:23]} exd4 {[%emt 0:02:16]} 18. Nxd4 {[%emt 0:00:38]} Bd7 {[%emt 0:01:13]} 19. Bc2 {[%emt 0:02:18]} c5 {[%emt 0:02:27]} 20. Ne2 {[%emt 0:03:46]} Bc6 {[%emt 0:09:18]} 21. Ng3 {[%emt 0:03:11]} Nbd7 {[%emt 0:00:08]} 22. f4 {[%emt 0:02:51]} g6 {[%emt 0:01:14]} 23. Bf2 {[%emt 0:01:45]} h5 {[%emt 0:00:25]} 24. Ngf1 {[%emt 0:10:16]} Bh6 {[%emt 0:07:09]} 25. Qf3 {[%emt 0:01:12]} Nh7 {[%emt 0:01:38]} 26. Rb1 {[%emt 0:06:22]} Qf6 {[%emt 0:00:36]} ({Better is} 26... Nhf8 $17 {White must now prevent ...Ne6.} 27. g3 Ne6) 27. g3 $15 {[%emt 0:01:35]} bxa3 {[%emt 0:06:34]} 28. bxa3 {[%emt 0:00:25]} Rab8 {[%emt 0:00:05]} 29. Ne3 {[%emt 0:05:05]} Qc3 {[%emt 0:03:04][%csl LRa3,LRd2]} 30. Qd1 {[%emt 0:02:31] [#]} ({Avoid the trap} 30. Nf5 $2 Qxc2 31. Rxb8 Nxb8 $19 (31... gxf5 $2 {perishes.} 32. Rxe8+ Ndf8 33. Rc8 $18) (31... Rxb8 $2 32. Ne7+ Kg7 33. Nxc6 $19)) (30. Red1 $15) 30... h4 {[%emt 0:03:20]} ({Of course not} 30... Qxa3 $6 31. Bb3 $11) ({Black should play} 30... Nhf6 $1 $17 {...h4 is the strong threat.} 31. Nd5 Rxb1 32. Nxc3 Rxd1 33. Bxd1 h4) 31. Ng4 {[%emt 0:02:08]} hxg3+ {[%emt 0:00:41]} 32. Bxg3 {[%emt 0:00:03]} Bg7 {[%emt 0:01:03] ...Nhf6 would now be deadly.} 33. Rxb8 {[%emt 0:05:58]} Rxb8 {[%emt 0:00:27]} 34. Re3 {[%emt 0:01:52] [#]} Qa1 {[%emt 0:00:57]} (34... Qb2 $1 $17 {Hoping for ...Nhf6.} 35. Rd3 Bd4) 35. Rd3 {[%emt 0:01:48]} Qxd1 {[%emt 0:01:27]} 36. Bxd1 {[%emt 0:00:01]} Bf8 {[%emt 0:01:07]} 37. Bf3 {[%emt 0:02:35]} Rb2 {[%emt 0:00:37]} 38. Kg1 {[%emt 0:00:56]} Ndf6 {[%emt 0:01:36]} 39. Ne3 {[%emt 0:02:03]} Ra2 {[%emt 0:00:15]} 40. Kf1 {[%emt 0:02:07]} Rb2 {[%emt 0:01:12]} 41. h4 {[%emt 0:31:26]} Nh5 {[%emt 0:31:15]} (41... Ne8 $11 {feels stronger.}) 42. Bxh5 $14 {[%emt 0:00:52]} gxh5 {[%emt 0:00:03]} 43. Nd5 {[%emt 0:00:00] Against Nf6} Kg7 {[%emt 0:00:00]} 44. e5 {[%emt 0:00:00]} dxe5 {[%emt 0:00:00]} 45. fxe5 {[%emt 0:00:00]} Kg6 {[%emt 0:00:00]} 46. Ne4 {[%emt 0:00:00]} Kf5 {[%emt 0:00:00]} 47. Nd6+ {[%emt 0:00:00]} Bxd6 $1 {[%emt 0:00:00]} 48. exd6 {[%emt 0:00:00] Threatens to win with Ne7+.} Ke6 {[%emt 0:00:00][%mdl 8192]} (48... Nf8 $16) 49. Re3+ {[%emt 0:00:00] Weighted Error Value: White=0.13 (very precise) /Black=0.31.  Loses game:     	---       	Black=1      Mistake:       	White=1     	Black=4      Inaccurate:     	White=9     	Black=4      OK:         	White=12    	Black=17     Best:        	White=3     	---        Strong:       	---       	Black=1} 1-0

[Event "45th FIDE Olympiad 2024"]
[Site "Budapest"]
[Date "2024.09.12"]
[Round "2.40"]
[White "Mwale, George"]
[Black "Nxumalo, Vuyo"]
[Result "1-0"]
[ECO "C54"]
[WhiteElo "2056"]
[BlackElo "1746"]
[Annotator "NA"]
[PlyCount "83"]
[EventDate "2024.09.05"]
[EventType "team-tourn"]
[EventCountry "HUN"]
[SourceTitle "playchess.com"]
[Source "ChessBase"]
[SourceQuality "1"]
[WhiteTeam "Malawi"]
[BlackTeam "Eswatini"]
[WhiteTeamCountry "MWI"]
[TimeControl "40/5400+30:1800+30"]

1. e4 e5 2. Nf3 Nc6 3. Bc4 Bc5 4. c3 Nf6 5. d3 h6 6. O-O O-O 7. d4 Bb6 8. d5 Ne7 9. Bd3 d6 10. h3 Ng6 11. c4 Nh5 12. Nc3 Nhf4 13. Bc2 a6 14. Kh2 Qf6 15. Ng1 Ne7 16. g3 Nfg6 17. Qe2 Nh8 18. f4 exf4 19. gxf4 Nhg6 20. Be3 Bxe3 21. Qxe3 Re8 22. Qg3 Bd7 23. Rae1 Qh4 24. Qxh4 Nxh4 25. f5 g5 26. Kg3 f6 27. Nge2 Nc8 28. Nd4 Re7 29. Ne6 Bxe6 30. dxe6 Na7 31. Nd5 Kf8 32. Nxf6 c6 33. Rd1 Rd8 34. e5 Nc8 35. Nd7+ Rexd7 36. exd7 Rxd7 37. e6 Rd8 38. f6 Re8 39. Rde1 b5 40. e7+ Kf7 41. Bd1 Nxe7 42. fxe7+ 1-0

[Event "45th FIDE Olympiad 2024"]
[Site "Budapest"]
[Date "2024.09.12"]
[Round "2.41"]
[White "Duda, Jan-Krzysztof"]
[Black "Kantor, Gergely"]
[Result "1-0"]
[ECO "A22"]
[WhiteElo "2732"]
[BlackElo "2537"]
[Annotator "TA"]
[PlyCount "123"]
[EventDate "2024.09.05"]
[EventType "team-tourn"]
[EventCountry "HUN"]
[SourceTitle "playchess.com"]
[Source "ChessBase"]
[SourceQuality "1"]
[WhiteTeam "Poland"]
[BlackTeam "Hungary C"]
[WhiteTeamCountry "POL"]
[TimeControl "40/5400+30:1800+30"]

{[%evp 45,123,-14,-1,-33,-68,-41,0,0,0,0,0,0,0,0,0,0,0,0,0,0,25,-20,29,0,0,0,0,0,0,0,167,167,149,64,200,200,200,200,200,200,200,200,200,200,200,200,231,235,235,235,235,235,235,235,362,361,361,361,738,604,798,1027,1660,1639,2096,1945,5608,4722,29982,29979,29984,29983,29988,29989,29989,29990,29990,29991,29991,29992]} 1. c4 {[%emt 0:00:06]} e5 {[%emt 0:00:31]} 2. g3 {[%emt 0:00:09]} Nf6 {[%emt 0:00:30]} 3. Bg2 {[%emt 0:00:10]} d5 {[%emt 0:00:08]} 4. cxd5 {[%emt 0:00:06]} Nxd5 {[%emt 0:00:05]} 5. Nc3 {[%emt 0:00:12]} Nb6 {[%emt 0:00:10]} 6. a3 {[%emt 0:00:10] A22: English Opening: 1...e5 2 Nc3 Nf6.} a5 {[%emt 0:01:09]} 7. d3 {[%emt 0:02:20]} Nc6 {[%emt 0:01:37]} 8. Be3 {[%emt 0:03:04]} Bd6 {[%emt 0:03:15]} 9. Nf3 {[%emt 0:04:38]} O-O {[%emt 0:02:29]} 10. Rc1 $146 {[%emt 0:00:52]} ({Predecessor:} 10. O-O Be6 11. Ng5 Bf5 12. Nge4 Be7 13. Bc5 Qd7 14. Rc1 Rae8 15. Bxe7 Rxe7 16. Nc5 {½-½ Diederichs,L (1753)-Titgemeyer,E (1519) GER-chT U14 Girls 2011 (3.1)}) 10... Bg4 {[%emt 0:18:58]} 11. h3 {[%emt 0:04:11]} Bh5 {[%emt 0:01:16]} 12. Nh4 {[%emt 0:08:30]} Re8 {[%emt 0:15:50]} 13. Nf5 {[%emt 0:07:15]} Bf8 {[%emt 0:02:04]} 14. Bxb6 {[%emt 0:03:26]} cxb6 {[%emt 0:00:16]} 15. g4 {[%emt 0:00:23]} Bg6 {[%emt 0:01:23]} 16. Be4 {[%emt 0:08:46]} Nd4 {[%emt 0:16:27]} 17. e3 Ne6 {[%emt 0:00:45]} 18. Bxb7 {[%emt 0:07:51]} Nc5 19. Be4 {[%emt 0:00:30]} Rc8 {[%emt 0:19:08]} 20. h4 {[%emt 0:08:02]} b5 {[%emt 0:00:00]} 21. Ke2 {[%emt 0:03:32]} b4 {[%emt 0:00:10]} 22. axb4 {[%emt 0:02:24]} axb4 {[%emt 0:00:07]} 23. Nd5 {[%emt 0:09:57]} f6 {[%emt 0:01:30]} 24. Qg1 {[%emt 0:01:24]} (24. Nxb4 Nxe4 25. Rxc8 Qxc8 26. dxe4 Qc4+ (26... Bxb4 27. Qb3+ Kh8 28. Qxb4 $14) 27. Nd3 h5 $19 (27... Qxe4 $2 28. f3 $19)) 24... Bf7 {[%emt 0:06:06]} 25. Qg2 {[%emt 0:00:20]} Nb3 {[%emt 0:03:02]} (25... g6 $6 26. Ng3 $14) (25... Nxe4 {simplifies} 26. dxe4 b3 27. Rhd1 Rc2+) 26. Rxc8 {[%emt 0:10:14]} Qxc8 {[%emt 0:00:04]} 27. Nh6+ {[%emt 0:00:08]} gxh6 {[%emt 0:00:17]} 28. Nxf6+ {[%emt 0:00:07]} Kh8 {[%emt 0:01:22]} 29. Nxe8 {[%emt 0:00:08]} Bxe8 {[%emt 0:00:35]} 30. Kf3 {[%emt 0:01:17]} h5 {[%emt 0:00:36]} 31. g5 {[%emt 0:07:37]} Nd2+ {[%emt 0:01:09]} 32. Kg3 {[%emt 0:00:01]} Qg4+ {[%emt 0:02:13]} 33. Kh2 {[%emt 0:00:02]} Nxe4 {[%emt 0:02:29]} (33... Qe2 {should be considered.}) 34. Qxe4 {[%emt 0:01:05]} Qxe4 {[%emt 0:01:03]} 35. dxe4 {[%emt 0:00:02]} Bg6 {[%emt 0:00:40]} 36. f3 {[%emt 0:00:49]} Bc5 {[%emt 0:00:06]} 37. Re1 {[%emt 0:00:05]} b3 $2 {[%emt 0:00:50] [#]} (37... Kg7 $11 {and Black is okay.}) 38. Kg2 $1 $18 {[%emt 0:01:06]} Kg7 {[%emt 0:00:29]} 39. Rc1 {[%emt 0:01:13]} ({White should play} 39. Kf2 $16) 39... Bb4 {[%emt 0:00:38]} ({Black should try} 39... Bxe3 $14 40. Rc3 Bd4 41. Rxb3 Kf7) 40. Kf2 $18 {[%emt 0:01:16]} Bf7 {[%emt 0:00:27]} 41. Rc7 {[%emt 0:32:21]} Bd6 {[%emt 0:10:31]} 42. Rd7 {[%emt 0:00:00]} Bc5 {[%emt 0:03:01]} 43. Ke2 {[%emt 0:00:00]} Kg8 {[%emt 0:02:24]} 44. Rc7 {[%emt 0:00:00]} Bb4 {[%emt 0:02:52]} 45. f4 {[%emt 0:00:00]} Bd6 {[%emt 0:01:47]} 46. Rc6 {[%emt 0:00:00]} Bb4 {[%emt 0:01:27]} 47. fxe5 {[%emt 0:00:00]} Kf8 {[%emt 0:02:11]} 48. e6 {[%emt 0:00:00]} Bg6 {[%emt 0:00:54]} 49. Rb6 {[%emt 0:00:00]} Bc5 {[%emt 0:00:23]} (49... Ba5 {might work better.} 50. Rxb3 Ke7) 50. Rb5 $18 {[%emt 0:00:00]} (50. Rxb3 Bxe4 51. Rc3 (51. Rb8+ Ke7 $14) 51... Bd6 $14) 50... Bd6 {[%emt 0:02:32]} 51. Kf3 {[%emt 0:00:00]} (51. Rxb3 Bxe4 52. Rc3 Ke7 $11) 51... Bh2 $2 {[%emt 0:02:41] [#]} (51... Ke7 52. e5 (52. Rxb3 Kxe6 53. Rb6 Ke5 $14) 52... Bc7) 52. e5 $1 $18 {[%emt 0:00:00]} ({And not} 52. Rxb3 Ke7 $11) (52. Rb7 Ke8 53. Rxb3 Ke7 $11) 52... Be8 {[%emt 0:01:03]} 53. Rc5 {[%emt 0:00:00]} (53. Rxb3 Bxe5 54. Ke4 Bc7 $18) 53... Bg1 {[%emt 0:00:32]} 54. Rc3 {[%emt 0:02:43]} Bh2 {[%emt 0:01:26]} 55. Ke4 {[%emt 0:00:18]} Bg3 {[%emt 0:01:19]} 56. Kf5 {[%emt 0:00:21]} Be1 {[%emt 0:01:32]} 57. Rxb3 {[%emt 0:00:38]} Ba5 {[%emt 0:00:26]} 58. Rb8 {[%emt 0:00:07]} Bc7 {[%emt 0:00:45]} 59. Rc8 {[%emt 0:00:12]} Ba5 {[%emt 0:00:06]} 60. Kf6 {[%emt 0:00:18]} Bb4 {[%emt 0:00:16]} 61. Rc7 {[%emt 0:00:35]} Kg8 {[%emt 0:00:48]} 62. e7 {[%emt 0:00:13]} 1-0

[Event "45th FIDE Olympiad 2024"]
[Site "Budapest"]
[Date "2024.09.12"]
[Round "2.41"]
[White "Van Bemmelen, Ursus"]
[Black "Moncur, Cecil"]
[Result "1-0"]
[ECO "A41"]
[WhiteElo "2146"]
[BlackElo "1839"]
[Annotator "NA"]
[PlyCount "79"]
[EventDate "2024.09.05"]
[EventType "team-tourn"]
[EventCountry "HUN"]
[SourceTitle "playchess.com"]
[Source "ChessBase"]
[SourceQuality "1"]
[WhiteTeam "Netherlands Antilles"]
[BlackTeam "Bahamas"]
[WhiteTeamCountry "AHO"]
[BlackTeamCountry "BAH"]
[TimeControl "40/5400+30:1800+30"]

1. d4 g6 2. c4 Bg7 3. Nf3 d6 4. h3 Nc6 5. Bg5 Nf6 6. Nc3 O-O 7. e3 Re8 8. Be2 Nd7 9. O-O h6 10. Bh4 g5 11. Bg3 e5 12. dxe5 Ndxe5 13. Qc2 Be6 14. Nd5 f5 15. Rad1 Qd7 16. b4 Nxf3+ 17. Bxf3 Ne5 18. Bh5 Bf7 19. Bxf7+ Qxf7 20. f4 Nxc4 21. Qxc4 c6 22. fxg5 cxd5 23. Rxd5 Be5 24. g6 Qe6 25. Bxe5 dxe5 26. Rxf5 Rac8 27. Qd3 Rc3 28. Rfxe5 Rxd3 29. Rxe6 Rxe3 30. Rxe8+ Rxe8 31. Rd7 Re2 32. a4 Rb2 33. Rxb7 a5 34. b5 Rb4 35. Ra7 Rxa4 36. b6 Rb4 37. b7 a4 38. Ra8+ Kg7 39. b8=Q Rxb8 40. Rxb8 1-0

[Event "45th FIDE Olympiad 2024"]
[Site "Budapest"]
[Date "2024.09.12"]
[Round "2.42"]
[White "Krstulovic, Alex"]
[Black "Piorun, Kacper"]
[Result "1/2-1/2"]
[ECO "E12"]
[WhiteElo "2452"]
[BlackElo "2599"]
[Annotator "TA"]
[PlyCount "89"]
[EventDate "2024.09.05"]
[EventType "team-tourn"]
[EventCountry "HUN"]
[SourceTitle "playchess.com"]
[Source "ChessBase"]
[SourceQuality "1"]
[WhiteTeam "Hungary C"]
[BlackTeam "Poland"]
[BlackTeamCountry "POL"]
[TimeControl "40/5400+30:1800+30"]

{[%evp 18,89,0,-6,-8,-9,-18,-76,-55,-76,-87,-103,-90,-96,-31,-35,-27,-37,-6,-12,10,0,18,18,20,18,18,16,93,53,61,31,39,0,0,0,79,77,88,81,85,93,68,86,95,111,127,131,129,82,190,190,191,178,204,189,186,159,147,63,37,0,0,0,0,0,0,0,0,0,66,66,73,0]} 1. d4 {[%emt 0:00:03]} e6 {[%emt 0:00:06]} 2. Bf4 {[%emt 0:01:53]} Nf6 {[%emt 0:00:26]} 3. Nf3 {[%emt 0:00:06]} b6 {[%emt 0:01:24]} 4. e3 {[%emt 0:00:25]} Bb7 {[%emt 0:00:06]} 5. c4 {[%emt 0:00:24]} Bb4+ {[%emt 0:01:21]} 6. Nfd2 {[%emt 0:00:07]} c5 {[%emt 0:00:06] E12: Queen's Indian: Unusual White 4th moves, 4 a3, 4 Nc3 Bb7 5 a3 and 4 Nc3 Bb7 .} 7. a3 {[%emt 0:04:49]} Bxd2+ {[%emt 0:01:02]} 8. Nxd2 {[%emt 0:00:10]} cxd4 {[%emt 0:00:08]} 9. Bd6 $146 {[%emt 0:00:15]} ({Predecessor:} 9. exd4 d6 10. Be2 Nc6 11. Nf3 O-O 12. O-O Rc8 13. b4 Ne4 14. Qd3 Ne7 15. Ng5 Nxg5 16. Bxg5 {1-0 Jonsson,K (2072)-Lindberg,H (2246) SWE-chT2 1112 2011 (1)}) 9... dxe3 {[%emt 0:00:38]} 10. fxe3 {[%emt 0:00:05]} h5 {[%emt 0:00:54]} 11. Be2 {[%emt 0:21:08]} Ng4 {[%emt 0:06:14]} (11... Bxg2 12. Rg1 Bc6 13. b4 (13. Rxg7 Ng4 $15)) 12. Bxg4 {[%emt 0:09:38]} (12. Bf3 $11 Bc6 (12... Nxe3 13. Qb3 $11) 13. Qe2) 12... Qh4+ $17 {[%emt 0:00:41]} (12... hxg4 13. Qxg4 Qh4+ 14. Qxh4 Rxh4 15. O-O $11) 13. g3 {[%emt 0:00:31]} Qxg4 {[%emt 0:00:12]} 14. Qxg4 {[%emt 0:00:47]} hxg4 {[%emt 0:00:04]} 15. O-O {[%emt 0:00:07]} f5 {[%emt 0:05:00]} (15... Nc6 $17 16. Rf4 f5) 16. e4 {[%emt 0:04:47]} g6 {[%emt 0:00:19]} (16... fxe4 17. Rf4 Nc6 (17... e3 18. Raf1 $14) 18. Rxe4 $14) (16... Bxe4 $6 17. Nxe4 fxe4 18. Rae1 $14) 17. Rae1 {[%emt 0:03:21]} Kf7 {[%emt 0:00:12]} 18. b4 $1 {[%emt 0:00:58]} Na6 {[%emt 0:11:05]} 19. c5 {[%emt 0:05:20]} b5 {[%emt 0:08:03]} 20. Nb3 {[%emt 0:03:13]} Nb8 {[%emt 0:05:13]} 21. Na5 {[%emt 0:09:54]} Bc6 {[%emt 0:00:06]} 22. Rf4 {[%emt 0:02:23]} Na6 {[%emt 0:06:32]} (22... Rh3 $11 {remains equal.}) 23. Ref1 {[%emt 0:08:05]} Ke8 {[%emt 0:04:19]} (23... Bxe4 $2 24. Rxe4 Ke8 25. Rd4 $18) 24. exf5 {[%emt 0:01:35]} gxf5 {[%emt 0:01:35]} 25. Rd4 {[%emt 0:00:20]} Rc8 {[%emt 0:08:36]} 26. Re1 {[%emt 0:09:49]} Kf7 {[%emt 0:05:59]} (26... Bf3 $11 {keeps the balance.}) 27. Be5 $1 $16 {[%emt 0:03:45]} Rhd8 {[%emt 0:04:40]} 28. Red1 $1 {[%emt 0:00:06]} Bd5 {[%emt 0:00:14]} 29. Rxd5 $1 {[%emt 0:00:15]} exd5 {[%emt 0:00:05]} 30. Nb7 $1 {[%emt 0:00:05]} Rg8 {[%emt 0:07:33]} 31. Nd6+ {[%emt 0:00:19]} (31. Rxd5 $2 {loses.} Ke6 32. Rd6+ Kxe5 $19) 31... Ke6 {[%emt 0:00:13] [#]} 32. Bd4 $1 {[%emt 0:05:19]} Ke7 {[%emt 0:00:00]} 33. Nxf5+ {[%emt 0:01:00]} (33. Nxc8+ $142 Rxc8 34. Re1+ Kd8 35. Re5) 33... Kf7 {[%emt 0:02:51]} (33... Kd8 $16 {was worth a try.}) 34. Nd6+ $18 {[%emt 0:00:39]} Kg6 {[%emt 0:00:02]} 35. Nxc8 {[%emt 0:00:45]} ({Don't play} 35. Nxb5 $6 Nc7 36. Nxc7 (36. Nxa7 Ra8 $11) 36... Rxc7 $11) 35... Rxc8 {[%emt 0:00:01]} 36. Rf1 {[%emt 0:01:01]} Nb8 {[%emt 0:02:29]} 37. Rf6+ {[%emt 0:00:56]} Kg5 {[%emt 0:00:04]} 38. Rd6 {[%emt 0:01:14]} (38. Bb2 $16) 38... Kf5 $14 {[%emt 0:00:04]} 39. Rxd5+ {[%emt 0:00:53]} Ke4 {[%emt 0:00:01]} 40. Rd6 {[%emt 0:00:12]} Rc6 {[%emt 0:00:08]} 41. Bf2 {[%emt 0:07:27]} Rxd6 {[%emt 0:00:25]} 42. cxd6 {[%emt 0:00:02]} Nc6 {[%emt 0:00:47]} 43. Kg2 {[%emt 0:02:05]} a5 {[%emt 0:01:53]} (43... Kd5 $11) 44. bxa5 $14 {[%emt 0:00:24]} Nxa5 {[%emt 0:00:04] [#]} 45. Be1 {[%emt 0:01:32]} ({Better is} 45. Bc5 $1 $16) 1/2-1/2

[Event "45th FIDE Olympiad 2024"]
[Site "Budapest"]
[Date "2024.09.12"]
[Round "2.42"]
[White "Ferguson, Joseph"]
[Black "Capella, Rurik"]
[Result "1/2-1/2"]
[ECO "A02"]
[WhiteElo "1797"]
[BlackElo "1971"]
[Annotator "NA"]
[PlyCount "90"]
[EventDate "2024.09.05"]
[EventType "team-tourn"]
[EventCountry "HUN"]
[SourceTitle "playchess.com"]
[Source "ChessBase"]
[SourceQuality "1"]
[WhiteTeam "Bahamas"]
[BlackTeam "Netherlands Antilles"]
[WhiteTeamCountry "BAH"]
[BlackTeamCountry "AHO"]
[TimeControl "40/5400+30:1800+30"]

1. f4 Nh6 2. e4 d5 3. e5 Bg4 4. Nf3 e6 5. Be2 Bc5 6. d4 Bb6 7. Ng5 Bxe2 8. Qxe2 Bxd4 9. Be3 Bxe3 10. Qxe3 Nf5 11. Qa3 Nd7 12. Nd2 Nxe5 13. Nxe6 fxe6 14. fxe5 Qh4+ 15. g3 Qe7 16. Qxe7+ Kxe7 17. O-O-O Rhf8 18. Nb3 b6 19. c3 c5 20. a4 Ne3 21. Rde1 Nc4 22. Re2 Rf5 23. Rhe1 Raf8 24. Nd2 Nxd2 25. Kxd2 Kd7 26. b4 cxb4 27. cxb4 Rf2 28. b5 Rxe2+ 29. Rxe2 Rc8 30. Rf2 Ke7 31. Rf4 Rc5 32. Rd4 Kf7 33. Rf4+ Ke7 34. Rd4 Rc8 35. Rf4 Ra8 36. Kc3 Rc8+ 37. Kd2 a6 38. bxa6 Ra8 39. Kc3 Rxa6 40. Kb4 Ra5 41. Rd4 Kf7 42. Rf4+ Ke7 43. Rd4 Rc5 44. h4 Kf7 45. h5 h6 1/2-1/2

[Event "45th FIDE Olympiad 2024"]
[Site "Budapest"]
[Date "2024.09.12"]
[Round "2.43"]
[White "Bartel, Mateusz"]
[Black "Juhasz, Agoston"]
[Result "1-0"]
[ECO "A21"]
[WhiteElo "2618"]
[BlackElo "2427"]
[Annotator "TA"]
[PlyCount "63"]
[EventDate "2024.09.05"]
[EventType "team-tourn"]
[EventCountry "HUN"]
[SourceTitle "playchess.com"]
[Source "ChessBase"]
[SourceQuality "1"]
[WhiteTeam "Poland"]
[BlackTeam "Hungary C"]
[WhiteTeamCountry "POL"]
[TimeControl "40/5400+30:1800+30"]

{[%evp 9,63,20,29,22,12,18,15,19,38,39,42,25,50,13,6,18,11,16,21,18,22,0,0,0,0,0,0,0,0,0,0,0,0,0,0,-8,25,10,70,76,93,98,112,111,158,105,188,201,185,180,128,138,507,488,671,661]} 1. c4 {[%emt 0:00:04]} e5 {[%emt 0:03:00]} 2. Nc3 {[%emt 0:00:08]} Bb4 {[%emt 0:06:12]} 3. Nd5 {[%emt 0:00:05]} Bc5 {[%emt 0:02:58]} 4. e3 {[%emt 0:02:07]} Nf6 {[%emt 0:00:56]} 5. b4 {[%emt 0:00:41]} Nxd5 {[%emt 0:02:04]} 6. bxc5 {[%emt 0:00:08]} Nf6 {[%emt 0:00:04]} 7. Nf3 {[%emt 0:02:23]} e4 {[%emt 0:06:12]} 8. Nd4 {[%emt 0:00:15] The position is equal.} Nc6 {[%emt 0:03:06]} 9. Bb2 {[%emt 0:04:44]} O-O {[%emt 0:00:46]} 10. Be2 {[%emt 0:05:27]} b6 {[%emt 0:03:35]} 11. O-O {[%emt 0:02:32][%cal Bh1f1,Bf1f3,Bf3g3][%mdl 32]} bxc5 {[%emt 0:08:30]} 12. Nxc6 {[%emt 0:04:01]} dxc6 {[%emt 0:00:03]} 13. f4 {[%emt 0:04:06]} exf3 {[%emt 0:17:43]} 14. Rxf3 {[%emt 0:07:18] Threatens to win with Bxf6.} Ne4 {[%emt 0:02:20][%cal Oc8g4]} 15. d3 {[%emt 0:00:42][%mdl 1024] White has compensation.} Ng5 {[%emt 0:00:56]} 16. Rg3 {[%emt 0:00:35]} f6 {[%emt 0:01:25]} 17. Qf1 {[%emt 0:00:37]} Rb8 {[%emt 0:01:57]} 18. Bc3 {[%emt 0:00:18]} Qd6 {[%emt 0:01:24]} 19. Qf2 {[%emt 0:00:26]} Kh8 {[%emt 0:05:26]} 20. Rf1 {[%emt 0:01:25][%cal Og3g5] aiming for Rxg5!} Bd7 {[%emt 0:01:35]} 21. Qe1 {[%emt 0:05:38]} h6 {[%emt 0:07:54]} 22. Qf2 {[%emt 0:05:10]} Rbe8 {[%emt 0:03:06]} 23. h4 {[%emt 0:03:10]} Nh7 {[%emt 0:07:30]} ({Black should try} 23... Ne6 $11) 24. e4 $14 {[%emt 0:05:30]} Rb8 {[%emt 0:02:04]} 25. Bh5 {[%emt 0:02:27]} Be8 {[%emt 0:01:35]} 26. Bg4 {[%emt 0:00:21] White is more active.} Rf7 {[%emt 0:03:31]} ({Black should play} 26... a5 27. Re3 (27. Bxa5 Bd7 $16) 27... Bd7) 27. Bf5 {[%emt 0:03:05]} (27. Re3 $142) 27... Nf8 {[%emt 0:01:00] [#]} (27... Re7 $16 {keeps fighting.}) 28. Qe3 $1 $18 {[%emt 0:00:20]} Nd7 {[%emt 0:06:29] [#]} 29. Bxd7 {[%emt 0:01:38]} Bxd7 {[%emt 0:01:04]} 30. e5 {[%emt 0:01:39]} Qe6 {[%emt 0:00:30][%mdl 8192]} (30... Qe7 $16 31. Qc1 (31. exf6 Qxe3+ 32. Rxe3 gxf6 $16) 31... f5) 31. Rg6 {[%emt 0:05:31]} ({Less strong is} 31. exf6 Qxe3+ 32. Rxe3 gxf6 $16) 31... Kg8 {[%emt 0:00:34]} 32. Qxh6 {[%emt 0:03:29] Weighted Error Value: White=0.05 (flawless) /Black=0.42.  Loses game:     	---       	Black=1      Mistake:       	White=1     	Black=3      Inaccurate:     	White=1     	Black=2      OK:         	White=14    	Black=12     Best:        	White=2     	---        Strong:       	White=1     	---} 1-0

[Event "45th FIDE Olympiad 2024"]
[Site "Budapest"]
[Date "2024.09.12"]
[Round "2.43"]
[White "Van Opstal, Rurik"]
[Black "Pride, Avian"]
[Result "1-0"]
[ECO "C02"]
[WhiteElo "2006"]
[BlackElo "1743"]
[Annotator "NA"]
[PlyCount "71"]
[EventDate "2024.09.05"]
[EventType "team-tourn"]
[EventCountry "HUN"]
[SourceTitle "playchess.com"]
[Source "ChessBase"]
[SourceQuality "1"]
[WhiteTeam "Netherlands Antilles"]
[BlackTeam "Bahamas"]
[WhiteTeamCountry "AHO"]
[BlackTeamCountry "BAH"]
[TimeControl "40/5400+30:1800+30"]

1. e4 e6 2. d4 d5 3. e5 c5 4. c3 Nc6 5. Nf3 Bd7 6. a3 cxd4 7. cxd4 Qb6 8. Nc3 Na5 9. b4 Nc4 10. Bxc4 dxc4 11. O-O Ne7 12. Be3 Nd5 13. Rc1 Be7 14. Qe2 Rc8 15. Ne4 Qa6 16. Qb2 Bc6 17. Nc5 Bxc5 18. dxc5 Nxe3 19. fxe3 b6 20. Nd2 bxc5 21. Nxc4 O-O 22. Nd6 Bb5 23. Nxc8 Bxf1 24. Nd6 Bd3 25. bxc5 Qc6 26. Qc3 Ba6 27. Rb1 Rd8 28. Qd4 h6 29. Rb2 Rd7 30. Rb8+ Kh7 31. Rf8 Bb7 32. e4 Qc7 33. h3 g6 34. Qf2 Bxe4 35. Qf6 Qxc5+ 36. Kh2 1-0